bitfinex/quotes_BTCUSD_20240818
["timestamp","ask_amount","ask_price","bid_price","bid_amount"]
[1723990902024,0.38230489,60024.0,60023.0,0.0019075]
[1723990902378,0.36830489,60024.0,60023.0,0.0009075]
[1723990902581,0.60154489,60024.0,60023.0,0.0009075]
[1723990902781,0.38030489,60024.0,60023.0,0.0009075]
[1723990903008,0.61354489,60024.0,60023.0,0.0009075]
[1723990903203,0.60154489,60024.0,60023.0,0.0009075]
[1723990903419,0.36830489,60024.0,60023.0,0.0009075]
[1723990903621,0.60954489,60024.0,60023.0,0.0009075]
[1723990903822,0.96752148,60024.0,60023.0,0.0009075]
[1723990903981,1.13902489,60024.0,60023.0,0.0009075]
[1723990904783,1.15002489,60024.0,60023.0,0.0009075]
[1723990907742,1.15202489,60024.0,60023.0,0.0009075]
[1723990908181,1.25202489,60024.0,60023.0,0.0009075]
[1723990908391,1.42071038,60024.0,60023.0,0.0009075]
[1723990908802,1.40971038,60024.0,60023.0,0.0009075]
[1723990908997,1.64295038,60024.0,60023.0,0.0009075]
[1723990909439,1.63495038,60024.0,60023.0,0.0009075]
[1723990909765,1.64895038,60024.0,60023.0,0.0019075]
[1723990910215,1.24169454,60024.0,60023.0,0.0009075]
[1723990910549,1.24169454,60024.0,60023.0,0.0019075]
[1723990910830,1.25569454,60024.0,60023.0,0.0019075]
[1723990916437,0.33935454,60024.0,60023.0,0.0019075]
[1723990916657,0.33935454,60024.0,60023.0,0.1185285]
[1723990916658,0.19955454,60024.0,60023.0,0.1185285]
[1723990916793,0.19955454,60024.0,60023.0,0.0019075]
[1723990916996,0.19955454,60024.0,60023.0,0.02241815]
[1723990917176,0.19955454,60024.0,60023.0,0.02241777]
[1723990917398,0.20288489,60024.0,60023.0,0.02141777]
[1723990917626,0.18888489,60024.0,60023.0,0.02141777]
[1723990917829,0.45197454,60024.0,60023.0,0.02241777]
[1723990918035,0.91845454,60024.0,60023.0,0.0019075]
[1723990918239,0.90445454,60024.0,60023.0,0.0019075]
[1723990918454,0.68121454,60024.0,60023.0,0.0019075]
[1723990918880,0.67121454,60024.0,60023.0,0.0019075]
[1723990919104,0.67521454,60024.0,60023.0,0.0019075]
[1723990919329,0.66821454,60024.0,60023.0,0.0009075]
[1723990919538,0.52141454,60024.0,60023.0,0.0009075]
[1723990919735,0.18055454,60024.0,60023.0,0.20463888]
[1723990919942,0.18155454,60024.0,60023.0,0.20463888]
[1723990920144,0.18155454,60024.0,60023.0,0.02141788]
[1723990920348,0.29817454,60024.0,60023.0,0.0009075]
[1723990920549,0.29717454,60024.0,60023.0,0.0009075]
[1723990920970,0.18755454,60024.0,60023.0,0.02241818]
[1723990921190,0.17855454,60024.0,60023.0,0.02241818]
[1723990921661,0.18655454,60024.0,60023.0,0.02241818]
[1723990921856,0.17855454,60024.0,60023.0,0.02241818]
[1723990922194,0.18455454,60024.0,60023.0,0.02241818]
[1723990922399,0.17155454,60024.0,60023.0,0.02141818]
[1723990922595,0.17155454,60024.0,60023.0,0.13803867]
[1723990922803,0.17655454,60024.0,60023.0,0.02141767]
[1723990923427,0.17655454,60024.0,60023.0,0.13803867]
[1723990923627,0.17655454,60024.0,60023.0,0.02141767]
[1723990924080,0.17655454,60024.0,60023.0,0.37128167]
[1723990924279,0.17655454,60024.0,60023.0,0.1175285]
[1723990924480,0.005,60024.0,60023.0,0.3507715]
[1723990924727,0.005,60024.0,60023.0,0.96766762]
[1723990924728,0.001,60024.0,60023.0,0.96766762]
[1723990925250,0.005,60024.0,60023.0,0.99285754]
[1723990925460,0.001,60024.0,60023.0,0.99285754]
[1723990926097,0.001,60024.0,60023.0,0.96766498]
[1723990926309,0.001,60024.0,60023.0,0.99285486]
[1723990926521,0.001,60024.0,60023.0,0.96766498]
[1723990926989,0.002,60024.0,60023.0,0.96766498]
[1723990927390,0.001,60024.0,60023.0,0.96766498]
[1723990927614,0.001,60024.0,60023.0,1.01729772]
[1723990928502,0.001,60024.0,60023.0,1.02255819]
[1723990928962,0.001,60024.0,60023.0,0.50617898]
[1723990929167,0.001,60024.0,60023.0,0.37627898]
[1723990929573,0.001,60024.0,60023.0,0.0059075]
[1723990929574,0.17255454,60024.0,60023.0,0.0059075]
[1723990929779,0.28917454,60024.0,60023.0,0.0059075]
[1723990930015,0.5901858,60024.0,60023.0,0.0059075]
[1723990930205,0.9019258,60024.0,60023.0,0.0009075]
[1723990930824,0.9029258,60024.0,60023.0,0.0009075]
[1723990931268,0.9019258,60024.0,60023.0,0.0009075]
[1723990931467,0.9039258,60024.0,60023.0,0.0009075]
[1723990931668,0.9069258,60024.0,60023.0,0.0009075]
[1723990931781,0.84248489,60024.0,60023.0,0.0009075]
[1723990931997,0.83948489,60024.0,60023.0,0.0009075]
[1723990932192,0.84548489,60024.0,60023.0,0.0009075]
[1723990933393,0.61224489,60024.0,60023.0,0.0009075]
[1723990936814,0.60891454,60024.0,60023.0,0.0009075]
[1723990937014,0.37567454,60024.0,60023.0,0.0009075]
[1723990937538,0.60891454,60024.0,60023.0,0.0009075]
[1723990937887,0.17955454,60024.0,60023.0,0.1789285]
[1723990938498,0.17955454,60024.0,60023.0,0.4121715]
[1723990939108,0.17955454,60024.0,60023.0,0.1789285]
[1723990939325,0.17955454,60024.0,60023.0,0.4121715]
[1723990939526,0.008,60024.0,60023.0,0.6454145]
[1723990939725,0.008,60024.0,60023.0,0.665924]
[1723990939925,0.008,60024.0,60023.0,0.5840145]
[1723990940130,0.17955454,60024.0,60023.0,0.13803732]
[1723990941171,0.17955454,60024.0,60023.0,0.13803695]
[1723990941545,0.17955454,60024.0,60023.0,0.37127995]
[1723990942221,0.17955454,60024.0,60023.0,0.13803695]
[1723990942428,0.36217454,60024.0,60023.0,0.02141595]
[1723990942843,0.24555454,60024.0,60023.0,0.0009075]
[1723990943044,0.24888489,60024.0,60023.0,0.0009075]
[1723990943240,0.36550489,60024.0,60023.0,0.0009075]
[1723990943443,0.59874489,60024.0,60023.0,0.0009075]
[1723990943644,0.90958489,60024.0,60023.0,0.0009075]
[1723990944026,1.14282489,60024.0,60023.0,0.0009075]
[1723990944232,1.14482489,60024.0,60023.0,0.0009075]
[1723990944445,1.24482489,60024.0,60023.0,0.0009075]
[1723990944839,1.3087768,60024.0,60023.0,0.0009075]
[1723990945042,1.37414367,60024.0,60023.0,0.0009075]
[1723990945290,1.54143176,60024.0,60023.0,0.0009075]
[1723990945664,1.54143176,60024.0,60023.0,0.0019075]
[1723990945665,1.63339871,60024.0,60023.0,0.0019075]
[1723990945867,1.61939871,60024.0,60023.0,0.0019075]
[1723990946266,1.61939871,60024.0,60023.0,0.0009075]
[1723990946488,1.64327599,60024.0,60023.0,0.0019075]
[1723990947721,1.64227599,60024.0,60023.0,0.0019075]
[1723990947921,1.56757877,60024.0,60023.0,0.0019075]
[1723990949439,1.33333877,60024.0,60023.0,0.0019075]
[1723990949726,1.33433877,60024.0,60023.0,0.0019075]
[1723990951481,1.33333877,60024.0,60023.0,0.0019075]
[1723990951682,1.33433877,60024.0,60023.0,0.0019075]
[1723990952096,1.27037182,60024.0,60023.0,0.0019075]
[1723990952518,1.26937182,60024.0,60023.0,0.0019075]
[1723990955029,1.25949454,60024.0,60023.0,0.0019075]
[1723990955254,0.19955454,60024.0,60023.0,0.0019075]
[1723990955846,0.19955454,60024.0,60023.0,0.1812285]
[1723990956052,0.17155454,60024.0,60023.0,0.1802285]
[1723990956526,0.19955454,60024.0,60023.0,0.1812285]
[1723990956733,0.18555454,60024.0,60023.0,0.1812285]
[1723990957166,0.18555454,60024.0,60023.0,0.0646075]
[1723990957167,0.19155454,60024.0,60023.0,0.0646075]
[1723990958010,0.17755454,60024.0,60023.0,0.0636075]
[1723990958398,0.17955454,60024.0,60023.0,0.0636075]
[1723990959224,0.17955454,60024.0,60023.0,0.0009075]
[1723990960154,0.29617454,60024.0,60023.0,0.0009075]
[1723990961484,0.28817454,60024.0,60023.0,0.0009075]
[1723990961657,0.29017454,60024.0,60023.0,0.0009075]
[1723990961859,0.29617454,60024.0,60023.0,0.0009075]
[1723990962072,0.35667454,60024.0,60023.0,0.0009075]
[1723990962419,0.82315454,60024.0,60023.0,0.0009075]
[1723990963004,1.13399454,60024.0,60023.0,0.0009075]
[1723990963555,1.13199454,60024.0,60023.0,0.0009075]
[1723990965077,1.12799454,60024.0,60023.0,0.0009075]
[1723990965495,1.25895399,60024.0,60023.0,0.0019075]
[1723990965894,1.26095399,60024.0,60023.0,0.0019075]
[1723990966347,1.12799454,60024.0,60023.0,0.0019075]
[1723990966565,1.12599454,60024.0,60023.0,0.0019075]
[1723990966742,1.12599454,60024.0,60023.0,0.0009075]
[1723990966951,1.13299454,60024.0,60023.0,0.0019075]
[1723990967119,1.13699454,60024.0,60023.0,0.0019075]
[1723990971159,1.27198481,60024.0,60023.0,0.0019075]
[1723990971371,1.50622481,60024.0,60023.0,0.0019075]
[1723990971567,1.67118703,60024.0,60023.0,0.0019075]
[1723990971767,1.67018703,60024.0,60023.0,0.0019075]
[1723990972237,1.67018703,60024.0,60023.0,0.0009075]
[1723990972238,1.66418703,60024.0,60023.0,0.0009075]
[1723990972410,1.66018703,60024.0,60023.0,0.0009075]
[1723990972613,1.65918703,60024.0,60023.0,0.0009075]
[1723990972817,1.69618703,60024.0,60023.0,0.0009075]
[1723990973014,1.71018703,60024.0,60023.0,0.0009075]
[1723990974801,1.57519676,60024.0,60023.0,0.0009075]
[1723990976359,1.80843676,60024.0,60023.0,0.0009075]
[1723990978268,1.80943676,60024.0,60023.0,0.0009075]
[1723990978474,1.81243676,60024.0,60023.0,0.0009075]
[1723990979169,1.81143676,60024.0,60023.0,0.0009075]
[1723990979369,1.9809913,60024.0,60023.0,0.0009075]
[1723990980842,1.9839913,60024.0,60023.0,0.0009075]
[1723990981044,1.80843676,60024.0,60023.0,0.0009075]
[1723990981649,1.81243676,60024.0,60023.0,0.0009075]
[1723990983241,1.81143676,60024.0,60023.0,0.0009075]
[1723990983671,1.80943676,60024.0,60023.0,0.0009075]
[1723990983868,1.81243676,60024.0,60023.0,0.0009075]
[1723990984219,1.80943676,60024.0,60023.0,0.0009075]
[1723990984943,1.9839913,60024.0,60023.0,0.0009075]
[1723990987496,1.81243676,60024.0,60023.0,0.0009075]
[1723990989458,1.86200503,60024.0,60023.0,0.0009075]
[1723990989812,1.81243676,60024.0,60023.0,0.0009075]
[1723990991711,1.88678916,60024.0,60023.0,0.0009075]
[1723990991911,1.8868069,60024.0,60023.0,0.0009075]
[1723990992089,2.05836144,60024.0,60023.0,0.0009075]
[1723990992289,1.9839913,60024.0,60023.0,0.0009075]
[1723990992493,2.05835814,60024.0,60023.0,0.0009075]
[1723990993397,2.05735814,60024.0,60023.0,0.0009075]
[1723990993539,2.05835814,60024.0,60023.0,0.0009075]
[1723990999444,2.05833767,60024.0,60023.0,0.0009075]
[1723990999647,1.88678313,60024.0,60023.0,0.0009075]
[1723991000060,1.65354313,60024.0,60023.0,0.0009075]
[1723991000261,1.57919676,60024.0,60023.0,0.0009075]
[1723991000901,1.81243676,60024.0,60023.0,0.0009075]
[1723991001102,1.57919676,60024.0,60023.0,0.0009075]
[1723991001565,1.62875902,60024.0,60023.0,0.0009075]
[1723991001868,1.80031356,60024.0,60023.0,0.0009075]
[1723991003214,1.62875902,60024.0,60023.0,0.0009075]
[1723991003435,1.57919676,60024.0,60023.0,0.0009075]
[1723991004494,1.6535604,60024.0,60023.0,0.0009075]
[1723991006367,1.57919676,60024.0,60023.0,0.0009075]
[1723991006499,1.67834828,60024.0,60023.0,0.0009075]
[1723991006702,1.84990282,60024.0,60023.0,0.0009075]
[1723991006931,1.82515174,60024.0,60023.0,0.0009075]
[1723991007104,1.82515174,60024.0,60009.0,0.0009075]
[1723991007105,1.018129,60010.0,60009.0,0.0009075]
[1723991007300,1.25364576,60010.0,60009.0,0.0009075]
[1723991007488,1.49373034,60010.0,60009.0,0.0009075]
[1723991008354,1.49473034,60010.0,60009.0,0.0009075]
[1723991008567,1.37393034,60010.0,60009.0,0.0009075]
[1723991008984,1.60822434,60010.0,60009.0,0.0009075]
[1723991010505,1.89972434,60010.0,60009.0,0.0009075]
[1723991010698,1.89772434,60010.0,60009.0,0.0009075]
[1723991011140,1.91762261,60010.0,60009.0,0.0009075]
[1723991011344,1.96721482,60010.0,60009.0,0.0009075]
[1723991011491,1.91162261,60010.0,60009.0,0.0009075]
[1723991011691,1.92562261,60010.0,60009.0,0.0009075]
[1723991012210,1.78553803,60010.0,60009.0,0.0009075]
[1723991012410,1.78153803,60010.0,60009.0,0.0009075]
[1723991012613,1.69363803,60010.0,60009.0,0.0009075]
[1723991013396,1.70663803,60010.0,60009.0,0.0009075]
[1723991013607,1.47234403,60010.0,60009.0,0.0009075]
[1723991014217,1.70663803,60010.0,60009.0,0.0009075]
[1723991014468,1.70563803,60010.0,60009.0,0.0009075]
[1723991014859,1.47234403,60010.0,60009.0,0.0009075]
[1723991015233,1.39204403,60010.0,60009.0,0.0009075]
[1723991015445,1.55803649,60010.0,60009.0,0.0009075]
[1723991016887,1.39204403,60010.0,60009.0,0.0009075]
[1723991017664,1.39104403,60010.0,60009.0,0.0009075]
[1723991019465,1.39104403,60010.0,60009.0,0.1280075]
[1723991020112,1.39104403,60010.0,60009.0,0.0647075]
[1723991020306,1.39104403,60010.0,60009.0,0.0009075]
[1723991020903,1.54264648,60010.0,60009.0,0.0009075]
[1723991021888,1.62124648,60010.0,60009.0,0.0009075]
[1723991022068,1.62224648,60010.0,60009.0,0.0009075]
[1723991023904,1.85554048,60010.0,60009.0,0.0009075]
[1723991024102,1.62224648,60010.0,60009.0,0.0009075]
[1723991024611,1.85554048,60010.0,60009.0,0.0009075]
[1723991025216,1.87854048,60010.0,60009.0,0.0009075]
[1723991025579,1.95298865,60010.0,60009.0,0.0009075]
[1723991025987,1.87754048,60010.0,60009.0,0.0009075]
[1723991026296,1.86454048,60010.0,60009.0,0.0009075]
[1723991026498,1.87854048,60010.0,60009.0,0.0009075]
[1723991026671,1.93898865,60010.0,60009.0,0.0009075]
[1723991026907,1.93998865,60010.0,60009.0,0.0009075]
[1723991027094,1.95298865,60010.0,60009.0,0.0009075]
[1723991027762,1.87854048,60010.0,60009.0,0.0009075]
[1723991029098,1.87954048,60010.0,60009.0,0.0009075]
[1723991029418,1.87854048,60010.0,60009.0,0.0009075]
[1723991030433,1.92816211,60010.0,60009.0,0.0009075]
[1723991030634,1.94174048,60010.0,60009.0,0.0009075]
[1723991030836,2.04100471,60010.0,60009.0,0.0009075]
[1723991031056,2.04400471,60010.0,60009.0,0.0009075]
[1723991031274,1.94474048,60010.0,60009.0,0.0009075]
[1723991031426,2.04397534,60010.0,60009.0,0.0009075]
[1723991031624,2.04397524,60010.0,60009.0,0.0009075]
[1723991032071,2.06878393,60010.0,60009.0,0.0009075]
[1723991032275,1.94474048,60010.0,60009.0,0.0009075]
[1723991032419,1.94747299,60010.0,60009.0,0.0009075]
[1723991033087,1.82344048,60010.0,60009.0,0.0009075]
[1723991033287,1.82344048,60010.0,60006.0,0.0009075]
[1723991033288,1.216677,60007.0,60006.0,0.0009075]
[1723991033489,1.67441006,60007.0,60006.0,0.0009075]
[1723991034645,0.899623,60003.0,60002.0,0.1]
[1723991034878,1.69086642,60003.0,60002.0,0.1]
[1723991035083,1.64126076,60003.0,60002.0,0.1]
[1723991035291,1.66387522,60003.0,60002.0,0.1]
[1723991035479,1.66687522,60003.0,60002.0,0.1]
[1723991035688,1.63726076,60003.0,60002.0,0.1]
[1723991035886,1.68685978,60003.0,60002.0,0.1]
[1723991036030,1.60605978,60003.0,60002.0,0.1]
[1723991036210,1.68685978,60003.0,60002.0,0.1]
[1723991037063,1.68785978,60003.0,60002.0,0.1]
[1723991037286,1.96831517,60003.0,60002.0,0.0306849]
[1723991037487,2.02990595,60003.0,60002.0,0.0306849]
[1723991037709,2.02690595,60003.0,60002.0,0.0306849]
[1723991037914,2.02890595,60003.0,60002.0,0.0306849]
[1723991038232,2.03090595,60003.0,60002.0,0.0306849]
[1723991038526,1.92858176,60003.0,60002.0,0.0306849]
[1723991038728,1.97416704,60003.0,60002.0,0.0306849]
[1723991038935,0.816816,59989.0,59988.0,0.0666]
[1723991039174,1.06917054,59989.0,59988.0,0.0666]
[1723991039741,0.35011,59981.0,59980.0,0.009075]
[1723991039936,0.60246454,59981.0,59980.0,0.009075]
[1723991040145,0.60246454,59981.0,59980.0,0.138975]
[1723991040938,0.60346454,59981.0,59980.0,0.138975]
[1723991041324,0.83687154,59981.0,59980.0,0.138975]
[1723991041523,1.07027854,59981.0,59980.0,0.138975]
[1723991041726,1.07127854,59981.0,59980.0,0.138975]
[1723991042181,0.83787154,59981.0,59980.0,0.138975]
[1723991042389,0.83687154,59981.0,59980.0,0.138975]
[1723991042589,0.83587154,59981.0,59980.0,0.138975]
[1723991042768,0.83587154,59981.0,59980.0,0.075675]
[1723991042971,0.84087154,59981.0,59980.0,0.075675]
[1723991043168,0.83587154,59981.0,59980.0,0.075675]
[1723991043528,0.84087154,59981.0,59980.0,0.075675]
[1723991043729,0.84787154,59981.0,59980.0,0.075675]
[1723991043953,0.84287154,59981.0,59980.0,0.075675]
[1723991044166,0.76407154,59981.0,59980.0,0.075675]
[1723991044365,0.84487154,59981.0,59980.0,0.075675]
[1723991044600,0.85587154,59981.0,59980.0,0.075675]
[1723991045035,0.84487154,59981.0,59980.0,0.075675]
[1723991045440,0.85487154,59981.0,59980.0,0.075675]
[1723991046017,0.77407154,59981.0,59980.0,0.075675]
[1723991046218,0.85487154,59981.0,59980.0,0.075675]
[1723991046424,0.86387154,59981.0,59980.0,0.075675]
[1723991046887,0.83587154,59981.0,59980.0,0.075675]
[1723991047168,0.84387154,59981.0,59980.0,0.075675]
[1723991047324,0.85387154,59981.0,59980.0,0.075675]
[1723991047874,0.95361098,59981.0,59980.0,0.009075]
[1723991048074,0.96361098,59981.0,59980.0,0.009075]
[1723991049053,1.08727854,59981.0,59980.0,0.009075]
[1723991050044,1.07727854,59981.0,59980.0,0.009075]
[1723991050225,1.08827854,59981.0,59980.0,0.009075]
[1723991050422,1.08027854,59981.0,59980.0,0.009075]
[1723991050823,1.08927854,59981.0,59980.0,0.009075]
[1723991051519,1.00847854,59981.0,59980.0,0.009075]
[1723991051820,1.08927854,59981.0,59980.0,0.009075]
[1723991053239,1.16737854,59981.0,59980.0,0.009075]
[1723991055344,1.08927854,59981.0,59980.0,0.009075]
[1723991056311,1.00847854,59981.0,59980.0,0.009075]
[1723991056562,1.00847854,59981.0,59980.0,0.072375]
[1723991056803,1.08927854,59981.0,59980.0,0.072375]
[1723991057005,1.08927854,59981.0,59980.0,0.134975]
[1723991057006,0.85587154,59981.0,59980.0,0.134975]
[1723991059234,0.19155454,59981.0,59980.0,0.485091]
[1723991060120,0.19155454,59981.0,59980.0,0.718502]
[1723991060559,0.02,59981.0,59980.0,0.718502]
[1723991060751,0.011,59981.0,59980.0,0.718502]
[1723991061045,0.0808,59987.0,59986.0,0.179293]
[1723991061235,0.25235454,59987.0,59986.0,0.242593]
[1723991062017,0.25235454,59987.0,59986.0,0.1259]
[1723991062220,0.25235454,59987.0,59986.0,0.242593]
[1723991062960,0.25235454,59987.0,59986.0,0.1259]
[1723991063766,0.25935454,59987.0,59986.0,0.1259]
[1723991064320,0.26835454,59987.0,59986.0,0.1259]
[1723991066510,0.26835454,59987.0,59980.0,0.072375]
[1723991066721,0.17155454,59986.0,59981.0,0.0626]
[1723991066920,0.0808,59982.0,59981.0,0.0626]
[1723991067122,0.25235454,59982.0,59981.0,0.0626]
[1723991067729,0.36905554,59982.0,59981.0,0.0626]
[1723991068125,0.60245854,59982.0,59981.0,0.0626]
[1723991068324,0.60345854,59982.0,59981.0,0.0626]
[1723991069396,0.60645854,59982.0,59981.0,0.0626]
[1723991069840,0.37305554,59982.0,59981.0,0.0626]
[1723991070060,0.29225554,59982.0,59981.0,0.0626]
[1723991072148,0.52565854,59982.0,59981.0,0.0626]
[1723991074154,0.29225554,59982.0,59981.0,0.0626]
[1723991074880,0.29225554,59982.0,59980.0,0.009075]
[1723991074881,0.35011,59981.0,59980.0,0.009075]
[1723991075118,0.52166454,59981.0,59980.0,0.009075]
[1723991075353,0.75507154,59981.0,59980.0,0.009075]
[1723991076177,0.75707154,59981.0,59980.0,0.009075]
[1723991076575,0.75507154,59981.0,59980.0,0.009075]
[1723991076981,0.75907154,59981.0,59980.0,0.009075]
[1723991077935,0.76107154,59981.0,59980.0,0.009075]
[1723991079514,0.75707154,59981.0,59980.0,0.009075]
[1723991079892,0.76307154,59981.0,59980.0,0.009075]
[1723991080301,0.76907154,59981.0,59980.0,0.009075]
[1723991080506,0.17755454,59981.0,59980.0,0.009075]
[1723991080689,0.29425754,59981.0,59980.0,0.138375]
[1723991081075,0.18155454,59981.0,59980.0,0.138375]
[1723991081795,0.18155454,59981.0,59980.0,0.25508]
[1723991082005,0.18755454,59981.0,59980.0,0.138375]
[1723991082202,0.08755454,59981.0,59980.0,0.138375]
[1723991083343,0.08755454,59981.0,59980.0,0.25508]
[1723991083938,0.08755454,59981.0,59980.0,0.15889745]
[1723991085006,0.08755454,59981.0,59980.0,0.15889746]
[1723991086867,0.08715336,59981.0,59980.0,0.15889746]
[1723991087066,0.08715336,59981.0,59980.0,0.27560246]
[1723991088853,0.016,59981.0,59980.0,0.74242446]
[1723991089259,0.016,59981.0,59980.0,2.24242446]
[1723991089511,0.016,59981.0,59980.0,1.23451594]
[1723991089716,0.016,59981.0,59980.0,1.61656604]
[1723991089956,0.016,59981.0,59980.0,1.74155131]
[1723991090172,0.016,59981.0,59980.0,3.15723599]
[1723991090369,0.016,59981.0,59980.0,3.17310077]
[1723991090370,0.01,59981.0,59980.0,3.17310077]
[1723991090784,0.116669,59999.0,59994.0,0.116678]
[1723991090924,0.17155454,59998.0,59995.0,0.02052246]
[1723991091125,0.17155454,59998.0,59996.0,0.02052246]
[1723991091487,0.17155454,59998.0,59995.0,0.116675]
[1723991092307,0.17155454,59998.0,59993.0,0.066]
[1723991092308,0.17455454,59998.0,59994.0,0.233355]
[1723991092638,0.17455454,59998.0,59995.0,0.116675]
[1723991092836,0.17155454,59998.0,59995.0,0.116675]
[1723991093286,0.29522454,59998.0,59994.0,0.116678]
[1723991093550,0.29122454,59998.0,59994.0,0.116678]
[1723991093689,0.29222454,59998.0,59994.0,0.116678]
[1723991093956,0.17555454,59998.0,59995.0,0.116675]
[1723991094137,0.17555454,59998.0,59996.0,0.02051789]
[1723991094349,0.17555454,59998.0,59996.0,0.116673]
[1723991094541,0.17455454,59998.0,59997.0,0.116672]
[1723991094758,0.17455454,59998.0,59995.0,0.116674]
[1723991094913,0.17455454,59998.0,59996.0,0.13719062]
[1723991095123,0.17155454,59998.0,59996.0,0.116673]
[1723991095347,0.17155454,59998.0,59994.0,0.233353]
[1723991095541,0.17155454,59998.0,59995.0,0.25386861]
[1723991095749,0.17455454,59998.0,59996.0,0.02051661]
[1723991095943,0.17555454,59998.0,59994.0,0.233355]
[1723991096143,0.17555454,59998.0,59995.0,0.13719161]
[1723991096395,0.17555454,59998.0,59995.0,0.116675]
[1723991096566,0.17255454,59998.0,59995.0,0.116675]
[1723991096765,0.17555454,59998.0,59995.0,0.116675]
[1723991097412,0.17455454,59998.0,59995.0,0.116675]
[1723991097607,0.17555454,59998.0,59996.0,0.116673]
[1723991098665,0.17255454,59998.0,59996.0,0.116673]
[1723991099072,0.17555454,59998.0,59996.0,0.116673]
[1723991100033,0.17455454,59998.0,59996.0,0.116673]
[1723991100520,0.003,59998.0,59997.0,0.350017]
[1723991101178,0.004,59998.0,59997.0,0.350017]
[1723991101381,0.001,59998.0,59997.0,0.350017]
[1723991101579,0.117489,60002.0,59998.0,0.116669]
[1723991101845,0.17155454,60001.0,59998.0,0.116669]
[1723991103671,0.17555454,60001.0,59998.0,0.116669]
[1723991104452,0.17555454,60001.0,59999.0,0.116667]
[1723991104824,0.18155454,60001.0,59999.0,0.116667]
[1723991105175,0.18155454,60001.0,59998.0,0.11667]
[1723991105415,0.17555454,60001.0,59998.0,0.11667]
[1723991105649,0.18155454,60001.0,59998.0,0.11667]
[1723991105868,0.18155454,60001.0,60000.0,0.116666]
[1723991106040,0.18155454,60001.0,59999.0,0.116668]
[1723991106340,0.17155454,60001.0,59999.0,0.116668]
[1723991106496,0.18238054,60001.0,59999.0,0.116668]
[1723991107369,0.17838054,60001.0,59999.0,0.116668]
[1723991108349,0.17238054,60001.0,59999.0,0.116668]
[1723991108740,0.17838054,60001.0,59999.0,0.116668]
[1723991109281,0.17238054,60001.0,59999.0,0.116668]
[1723991109641,0.17438054,60001.0,59999.0,0.116668]
[1723991110270,0.17438054,60001.0,60000.0,0.116666]
[1723991110891,0.17438054,60001.0,59999.0,0.116668]
[1723991111494,0.17238054,60001.0,59999.0,0.116668]
[1723991111691,0.28904554,60001.0,59996.0,0.233348]
[1723991111898,0.17438054,60001.0,59994.0,0.233355]
[1723991112051,0.0627,60000.0,59998.0,0.116669]
[1723991112256,0.23425454,60000.0,59998.0,0.116669]
[1723991115256,0.23525454,60000.0,59998.0,0.116669]
[1723991116648,0.23525454,60000.0,59999.0,0.116668]
[1723991116855,0.17255454,60000.0,59997.0,0.116671]
[1723991117058,0.17255454,60000.0,59998.0,0.13718398]
[1723991117256,0.17255454,60000.0,59997.0,0.233344]
[1723991117257,0.17255454,60000.0,59999.0,0.116668]
[1723991117456,0.17255454,60000.0,59999.0,0.02051587]
[1723991117866,0.17255454,60000.0,59999.0,0.60385787]
[1723991117867,0.001,60000.0,59999.0,0.60385787]
[1723991118087,0.001,60000.0,59999.0,0.96089487]
[1723991118441,0.001,60000.0,59999.0,0.98593623]
[1723991118650,0.000826,60001.0,60000.0,0.816665]
[1723991119010,0.000826,60001.0,60000.0,0.9859198]
[1723991119325,0.000826,60001.0,60000.0,0.98592002]
[1723991119515,0.000826,60001.0,60000.0,0.99510195]
[1723991120303,0.000826,60001.0,60000.0,0.98592002]
[1723991120510,0.002826,60001.0,60000.0,0.62888702]
[1723991120919,0.002826,60001.0,60000.0,0.63806873]
[1723991122977,0.002826,60001.0,60000.0,0.583332]
[1723991123123,0.002826,60001.0,60000.0,0.63806787]
[1723991125464,0.002826,60001.0,60000.0,0.62888616]
[1723991125897,0.002826,60001.0,60000.0,0.63806787]
[1723991126101,0.002826,60001.0,60000.0,0.62888616]
[1723991126648,0.002826,60001.0,60000.0,0.63806787]
[1723991126851,0.002826,60001.0,60000.0,0.62888616]
[1723991127586,0.002826,60001.0,60000.0,0.60384542]
[1723991127787,0.002826,60001.0,60000.0,0.62888601]
[1723991128058,0.002826,60001.0,60000.0,0.60384542]
[1723991128244,0.002826,60001.0,60000.0,0.62888633]
[1723991130856,0.002826,60001.0,60000.0,0.60384599]
[1723991131056,0.064226,60001.0,60000.0,0.13717999]
[1723991131457,0.064226,60001.0,60000.0,0.37051299]
[1723991131662,0.002826,60001.0,60000.0,0.37051299]
[1723991131888,0.002826,60001.0,60000.0,0.349999]
[1723991135302,0.002826,60001.0,60000.0,0.39993165]
[1723991136379,0.002826,60001.0,60000.0,0.65823098]
[1723991136699,0.002826,60001.0,60000.0,0.583332]
[1723991136913,0.002826,60001.0,60000.0,0.349999]
[1723991137672,0.002826,60001.0,60000.0,0.42489798]
[1723991138081,0.002826,60001.0,60000.0,0.47045282]
[1723991138919,0.002826,60001.0,60000.0,0.47053089]
[1723991139287,0.002826,60001.0,60000.0,0.84028459]
[1723991140095,0.002826,60001.0,60000.0,0.84028399]
[1723991141085,0.002826,60001.0,60000.0,1.07361699]
[1723991141287,0.145026,60001.0,60000.0,0.44554224]
[1723991141488,0.145026,60001.0,60000.0,0.42050123]
[1723991142792,0.145026,60001.0,60000.0,0.65383423]
[1723991143051,0.145026,60001.0,60000.0,0.42050123]
[1723991143312,0.145026,60001.0,60000.0,0.44554251]
[1723991143479,0.145026,60001.0,60000.0,0.44554676]
[1723991143680,0.145026,60001.0,60000.0,0.39555411]
[1723991144303,0.145026,60001.0,60000.0,0.62888711]
[1723991145079,0.145026,60001.0,60000.0,0.39555411]
[1723991145280,0.145026,60001.0,60000.0,0.44554929]
[1723991145601,0.145026,60001.0,60000.0,0.44554971]
[1723991146168,0.145026,60001.0,60000.0,0.44554998]
[1723991148546,0.31658054,60001.0,60000.0,0.09555098]
[1723991148764,0.31658054,60001.0,60000.0,0.02051425]
[1723991148765,0.89990254,60001.0,60000.0,0.02051425]
[1723991149189,0.0624,59992.0,59990.0,0.04999518]
[1723991149392,0.0624,59992.0,59989.0,0.04999518]
[1723991149393,0.25325454,59991.0,59989.0,0.04999518]
[1723991149596,0.25325454,59991.0,59990.0,0.0205177]
[1723991149799,0.31565454,59991.0,59990.0,0.0205177]
[1723991151154,0.51313854,59991.0,59986.0,0.116692]
[1723991151327,0.51313854,59991.0,59987.0,0.02051898]
[1723991151328,0.0817,59989.0,59987.0,0.02051898]
[1723991151504,0.0793,59987.0,59985.0,0.116695]
[1723991151708,0.0793,59987.0,59986.0,0.02051922]
[1723991152317,0.0793,59987.0,59986.0,0.13721222]
[1723991152995,0.25085454,59987.0,59986.0,0.02051922]
[1723991153195,0.31405454,59987.0,59986.0,0.02151922]